bitfinex/quotes_BTCUSD_20241103
["timestamp","ask_amount","ask_price","bid_price","bid_amount"]
[1730609281958,0.01450175,68557.0,68556.0,0.70871906]
[1730609282134,0.01450175,68557.0,68556.0,0.72025292]
[1730609282382,0.01450175,68557.0,68556.0,0.70905623]
[1730609282600,0.01450175,68557.0,68556.0,0.72059009]
[1730609282817,0.01450175,68557.0,68556.0,0.70905623]
[1730609283031,0.01450175,68557.0,68556.0,0.72059009]
[1730609283245,0.01450175,68557.0,68556.0,0.70905623]
[1730609283461,0.01450175,68557.0,68556.0,0.72059009]
[1730609283677,0.01450175,68557.0,68556.0,0.70905623]
[1730609283893,0.01450175,68557.0,68556.0,0.72059009]
[1730609284107,0.01450175,68557.0,68556.0,0.70905623]
[1730609284321,0.01450175,68557.0,68556.0,0.72059009]
[1730609284559,0.01450175,68557.0,68556.0,0.70905623]
[1730609284779,0.01450175,68557.0,68556.0,0.72059009]
[1730609284994,0.01450175,68557.0,68556.0,0.70905623]
[1730609285466,0.01450175,68557.0,68556.0,0.72059755]
[1730609285694,0.01450175,68557.0,68556.0,0.6116857]
[1730609286396,0.01450175,68557.0,68556.0,0.6166857]
[1730609286397,0.00082,68557.0,68556.0,0.6166857]
[1730609286816,0.00082,68557.0,68556.0,0.45587054]
[1730609287227,0.00082,68557.0,68556.0,0.61669351]
[1730609287644,0.00082,68557.0,68556.0,0.61169351]
[1730609287861,0.00082,68557.0,68556.0,0.61669351]
[1730609288706,0.00082,68557.0,68556.0,0.59794401]
[1730609288929,0.00082,68557.0,68556.0,0.61668504]
[1730609289621,0.00082,68557.0,68556.0,0.45586207]
[1730609290476,0.00082,68557.0,68556.0,0.44432883]
[1730609290649,0.00082,68557.0,68556.0,0.45586207]
[1730609290933,0.00082,68557.0,68556.0,0.43712104]
[1730609291146,0.00082,68557.0,68556.0,0.45585908]
[1730609291356,0.00082,68557.0,68556.0,0.44432768]
[1730609291570,0.00082,68557.0,68556.0,0.45585908]
[1730609291777,0.00082,68557.0,68556.0,0.44432768]
[1730609291984,0.00082,68557.0,68556.0,0.45585908]
[1730609292196,0.00082,68557.0,68556.0,0.44432768]
[1730609292425,0.00082,68557.0,68556.0,0.45585908]
[1730609292631,0.00082,68557.0,68556.0,0.43712104]
[1730609292851,0.00082,68557.0,68556.0,0.4443312]
[1730609293110,0.00082,68557.0,68556.0,0.44433191]
[1730609293321,0.00082,68557.0,68556.0,0.61677844]
[1730609293545,0.00082,68557.0,68556.0,0.60524027]
[1730609293758,0.00082,68557.0,68556.0,0.61677844]
[1730609293982,0.00082,68557.0,68556.0,0.60524027]
[1730609294207,0.00082,68557.0,68556.0,0.61677844]
[1730609294421,0.00082,68557.0,68556.0,0.60524027]
[1730609294644,0.00082,68557.0,68556.0,0.61677844]
[1730609298443,0.00033612,68557.0,68556.0,0.60524027]
[1730609298673,0.00033612,68557.0,68556.0,0.61677844]
[1730609298901,0.00033612,68557.0,68556.0,0.60524027]
[1730609299117,0.00033612,68557.0,68556.0,0.61677844]
[1730609299336,0.00033612,68557.0,68556.0,0.61377844]
[1730609299795,0.00033612,68557.0,68556.0,0.61677844]
[1730609299998,0.00033612,68557.0,68556.0,0.61377844]
[1730609300410,0.00033612,68557.0,68556.0,0.61677844]
[1730609303287,0.00033612,68557.0,68556.0,0.61678379]
[1730609303766,0.00033612,68557.0,68556.0,0.61678376]
[1730609306709,0.00033612,68557.0,68556.0,0.60524232]
[1730609306894,0.00033612,68557.0,68556.0,0.61678784]
[1730609308442,0.00033612,68557.0,68556.0,0.61178784]
[1730609308647,0.00033612,68557.0,68556.0,0.61678784]
[1730609309662,0.00033612,68557.0,68556.0,0.61178784]
[1730609309869,0.00033612,68557.0,68556.0,0.61678784]
[1730609310496,0.00033612,68557.0,68556.0,0.62178784]
[1730609310701,0.00033612,68557.0,68556.0,0.67155115]
[1730609311588,0.00033612,68557.0,68556.0,0.75035805]
[1730609311926,0.21902447,68566.0,68565.0,0.182027]
[1730609312134,0.21902447,68566.0,68565.0,0.60745415]
[1730609312335,0.21902447,68566.0,68565.0,0.71635845]
[1730609312539,0.0829,68569.0,68568.0,0.24784]
[1730609312788,0.0829,68569.0,68568.0,0.62705717]
[1730609313648,0.0829,68569.0,68568.0,0.47118021]
[1730609314095,0.0829,68569.0,68568.0,0.47118003]
[1730609314737,0.0829,68569.0,68568.0,0.40584606]
[1730609315301,0.0829,68569.0,68568.0,0.40884606]
[1730609315714,0.083719,68569.0,68568.0,0.41084606]
[1730609316306,0.083719,68569.0,68568.0,0.44002606]
[1730609316960,0.083719,68569.0,68568.0,0.44377169]
[1730609317288,0.083719,68569.0,68568.0,0.43656267]
[1730609317487,0.083719,68569.0,68568.0,0.44376912]
[1730609317696,0.083719,68569.0,68568.0,0.48355744]
[1730609319401,0.083719,68569.0,68568.0,0.48355663]
[1730609319842,0.083719,68569.0,68568.0,0.48355355]
[1730609321093,0.083719,68569.0,68568.0,0.48355283]
[1730609324942,0.083719,68569.0,68568.0,0.47434791]
[1730609325118,0.083719,68569.0,68568.0,0.48155268]
[1730609325390,0.083719,68569.0,68568.0,0.47434791]
[1730609325595,0.083719,68569.0,68568.0,0.48155261]
[1730609327297,0.083719,68569.0,68568.0,0.48355261]
[1730609328973,0.083719,68569.0,68568.0,0.48355304]
[1730609329238,0.083719,68569.0,68568.0,0.49076394]
[1730609329441,0.083719,68569.0,68568.0,0.48876394]
[1730609332702,0.083719,68569.0,68568.0,0.48876475]
[1730609334241,0.131319,68569.0,68568.0,0.48876475]
[1730609336013,0.131319,68569.0,68568.0,0.49076475]
[1730609336224,0.131319,68569.0,68568.0,0.49076674]
[1730609336444,0.131319,68569.0,68568.0,0.48356161]
[1730609336666,0.131319,68569.0,68568.0,0.48156168]
[1730609338402,0.131319,68569.0,68568.0,0.48157022]
[1730609338603,0.14498675,68569.0,68568.0,0.43802504]
[1730609340353,0.14498675,68569.0,68568.0,0.041388]
[1730609341217,0.29082475,68569.0,68568.0,0.041388]
[1730609341914,0.14498675,68569.0,68568.0,0.041388]
[1730609345578,0.14498675,68569.0,68568.0,0.287228]
[1730609345786,0.14498675,68569.0,68568.0,0.143388]
[1730609346238,0.0973915,68569.0,68568.0,0.44294569]
[1730609346495,0.0973915,68569.0,68568.0,0.48358801]
[1730609346679,0.09739078,68569.0,68568.0,0.43281704]
[1730609346948,0.000819,68569.0,68568.0,0.51690625]
[1730609347378,0.29623223,68569.0,68568.0,0.01221152]
[1730609347627,0.28793033,68569.0,68568.0,0.005]
[1730609348286,0.28793033,68569.0,68568.0,0.002]
[1730609348719,0.1276,68558.0,68557.0,0.006638]
[1730609348938,0.14127333,68558.0,68557.0,0.0138488]
[1730609349829,0.14127333,68558.0,68557.0,0.01384458]
[1730609350516,0.14127333,68558.0,68557.0,0.01684458]
[1730609350977,0.1276,68558.0,68557.0,0.01384458]
[1730609351157,0.1276,68558.0,68557.0,0.01884458]
[1730609351397,0.1276,68558.0,68557.0,0.01684458]
[1730609351825,0.1276,68558.0,68557.0,0.01884458]
[1730609352448,0.1276,68558.0,68557.0,0.16470858]
[1730609352661,0.1276,68558.0,68557.0,0.01884458]
[1730609353490,0.1276,68558.0,68557.0,0.01584458]
[1730609353690,0.1276,68558.0,68557.0,0.11884458]
[1730609354019,0.1276,68558.0,68557.0,0.11684458]
[1730609354668,0.1276,68558.0,68557.0,0.11884458]
[1730609354867,0.0822,68558.0,68557.0,0.26470858]
[1730609355109,0.1276,68558.0,68557.0,0.12084458]
[1730609355308,0.4529422,68558.0,68557.0,0.106638]
[1730609355473,0.3741353,68558.0,68557.0,0.106638]
[1730609355838,0.3659153,68558.0,68557.0,0.106638]
[1730609356030,0.3659153,68558.0,68557.0,0.101638]
[1730609356451,0.3659153,68558.0,68557.0,0.106638]
[1730609356853,0.36590977,68558.0,68557.0,0.101638]
[1730609357334,0.36890977,68558.0,68557.0,0.101638]
[1730609358687,0.37290977,68558.0,68557.0,0.101638]
[1730609362416,0.37372877,68558.0,68557.0,0.101638]
[1730609363965,0.37371238,68558.0,68557.0,0.101638]
[1730609364541,0.45251928,68558.0,68557.0,0.101638]
[1730609365224,0.4388938,68558.0,68557.0,0.101638]
[1730609365440,0.37371248,68558.0,68557.0,0.101638]
[1730609367019,0.29490558,68558.0,68557.0,0.101638]
[1730609367499,0.10364594,68558.0,68557.0,0.247502]
[1730609367713,0.087019,68558.0,68557.0,0.247502]
[1730609368135,0.084019,68558.0,68557.0,0.247502]
[1730609368344,0.084019,68558.0,68557.0,0.249502]
[1730609368549,0.084019,68558.0,68557.0,0.103638]
[1730609369162,0.083019,68558.0,68557.0,0.101638]
[1730609369607,0.083019,68558.0,68557.0,0.103638]
[1730609369819,0.083019,68558.0,68557.0,0.104638]
[1730609370245,0.083019,68558.0,68557.0,0.106638]
[1730609370895,0.09665151,68558.0,68557.0,0.106638]
[1730609371144,0.09665135,68558.0,68557.0,0.106638]
[1730609371795,0.09665135,68558.0,68557.0,0.252502]
[1730609372014,0.09665135,68558.0,68557.0,0.249502]
[1730609372015,0.000819,68558.0,68557.0,0.249502]
[1730609372473,0.000819,68558.0,68557.0,0.252502]
[1730609372889,0.000819,68558.0,68557.0,0.247502]
[1730609373112,0.000819,68558.0,68557.0,0.250502]
[1730609373328,0.000819,68558.0,68557.0,0.252502]
[1730609374008,0.000819,68558.0,68557.0,0.106638]
[1730609374009,0.47954078,68558.0,68557.0,0.106638]
[1730609375055,0.47954078,68558.0,68557.0,0.104638]
[1730609375488,0.49354078,68558.0,68557.0,0.102638]
[1730609375692,0.45617274,68558.0,68557.0,0.101638]
[1730609375902,0.45617274,68558.0,68557.0,0.104638]
[1730609376118,0.43266452,68558.0,68557.0,0.105638]
[1730609376350,0.43266452,68558.0,68557.0,0.102638]
[1730609376570,0.44166452,68558.0,68557.0,0.103638]
[1730609377677,0.41966452,68558.0,68557.0,0.102638]
[1730609377879,0.41966452,68558.0,68557.0,0.103638]
[1730609378116,0.41966452,68558.0,68545.0,0.00719391]
[1730609378117,0.583506,68551.0,68545.0,0.00719391]
[1730609378330,0.583506,68551.0,68531.0,0.05206532]
[1730609378331,0.12024576,68546.0,68534.0,0.21902447]
[1730609378556,0.14591,68535.0,68534.0,0.21902447]
[1730609378780,0.15954876,68535.0,68532.0,0.002]
[1730609379031,0.01363876,68534.0,68532.0,0.002]
[1730609379245,0.01363876,68533.0,68532.0,0.002]
[1730609380119,0.01363876,68533.0,68532.0,0.00573736]
[1730609380355,0.145907,68537.0,68532.0,0.152917]
[1730609380566,0.01364643,68536.0,68533.0,0.145914]
[1730609380788,0.145907,68537.0,68534.0,0.003]
[1730609380789,0.01364643,68535.0,68534.0,0.003]
[1730609381171,0.01364643,68535.0,68533.0,0.145914]
[1730609381394,0.01364273,68534.0,68533.0,0.145914]
[1730609381548,0.01364273,68534.0,68533.0,0.15371518]
[1730609381764,0.26752447,68549.0,68537.0,0.005]
[1730609381986,0.21902447,68540.0,68537.0,0.150904]
[1730609382180,0.145892,68544.0,68537.0,0.296811]
[1730609382390,0.15953475,68543.0,68539.0,0.145901]
[1730609382601,0.01364075,68542.0,68539.0,0.145901]
[1730609382831,0.01364075,68541.0,68539.0,0.145901]
[1730609382996,0.01364075,68540.0,68538.0,0.145903]
[1730609383372,0.145894,68543.0,68538.0,0.145903]
[1730609383586,0.01364068,68542.0,68538.0,0.145903]
[1730609383775,0.01364068,68541.0,68538.0,0.145903]
[1730609383945,0.145894,68543.0,68538.0,0.145903]
[1730609383946,0.01364068,68540.0,68538.0,0.145903]
[1730609384154,0.145894,68543.0,68538.0,0.145903]
[1730609384353,0.01364116,68542.0,68538.0,0.145903]
[1730609384576,0.01364116,68541.0,68538.0,0.145903]
[1730609384719,0.01364116,68540.0,68537.0,0.005]
[1730609384935,0.22749,68545.0,68540.0,0.145899]
[1730609385151,0.01364096,68544.0,68540.0,0.145899]
[1730609385365,0.01364096,68544.0,68539.0,0.001]
[1730609385366,0.01364096,68543.0,68539.0,0.145902]
[1730609385568,0.01364096,68542.0,68540.0,0.145898]
[1730609385770,0.01364096,68541.0,68540.0,0.145898]
[1730609385966,0.01364096,68541.0,68540.0,0.005]
[1730609386171,0.01364096,68541.0,68540.0,0.1509]
[1730609386430,0.0816,68545.0,68541.0,0.145897]
[1730609387628,0.0826,68545.0,68541.0,0.145897]
[1730609388211,0.01364057,68544.0,68541.0,0.145897]
[1730609390310,0.01363784,68543.0,68541.0,0.145897]
[1730609391027,0.01363784,68543.0,68542.0,0.145895]
[1730609391460,0.01564057,68544.0,68540.0,0.005]
[1730609391685,0.01564057,68544.0,68541.0,0.148897]
[1730609391686,0.01363669,68543.0,68541.0,0.148897]
[1730609391907,0.01363669,68543.0,68541.0,0.248897]
[1730609392147,0.01363669,68543.0,68542.0,0.150895]
[1730609392362,0.01564057,68544.0,68543.0,0.145893]
[1730609392582,0.02727715,68544.0,68543.0,0.145893]
[1730609392801,0.01364057,68544.0,68543.0,0.145893]
[1730609393039,0.01364057,68544.0,68543.0,0.150893]
[1730609393662,0.01464057,68544.0,68543.0,0.150893]
[1730609393869,0.01464057,68544.0,68543.0,0.151893]
[1730609394288,0.01464057,68544.0,68543.0,0.43179777]
[1730609394493,0.01464057,68544.0,68543.0,0.4360736]
[1730609395506,0.01364057,68544.0,68543.0,0.4360736]
[1730609395866,0.01364057,68544.0,68543.0,0.4400736]
[1730609396085,0.01364057,68544.0,68543.0,0.4390736]
[1730609396311,0.01364057,68544.0,68543.0,0.4420736]
[1730609396766,0.01364057,68544.0,68543.0,0.44207341]
[1730609400475,0.01364057,68544.0,68543.0,0.44207595]
[1730609401593,0.0812,68554.0,68552.0,0.145873]
[1730609401854,0.01364178,68553.0,68552.0,0.145873]
[1730609402514,0.01364178,68553.0,68552.0,0.150873]
[1730609402747,0.0812,68554.0,68553.0,0.145872]
[1730609402969,0.09484377,68554.0,68553.0,0.150872]
[1730609404190,0.09584377,68554.0,68553.0,0.150872]
[1730609405043,0.01464377,68554.0,68553.0,0.37754286]
[1730609405255,0.001,68554.0,68553.0,0.37754286]
[1730609405549,0.001,68554.0,68553.0,0.37554286]
[1730609405746,0.001,68554.0,68553.0,0.41682957]
[1730609405976,0.001,68554.0,68553.0,0.51882957]
[1730609406176,0.001,68554.0,68553.0,0.54801957]
[1730609406688,0.001,68554.0,68553.0,0.55521472]
[1730609407008,0.000819,68556.0,68555.0,0.277058]
[1730609407219,0.000819,68556.0,68555.0,0.42285504]
[1730609407451,0.000819,68556.0,68555.0,0.43005019]
[1730609408270,0.000819,68556.0,68555.0,0.42285504]
[1730609409357,0.000819,68556.0,68555.0,0.42985504]
[1730609410126,0.000819,68556.0,68555.0,0.43704477]
[1730609411603,0.000819,68556.0,68555.0,0.44204477]
[1730609413222,0.000819,68556.0,68555.0,0.44204821]
[1730609413645,0.000819,68556.0,68555.0,0.4420479]
[1730609415569,0.000819,68556.0,68555.0,0.4520479]
[1730609415704,0.000819,68556.0,68555.0,0.5686479]
[1730609416909,0.000819,68556.0,68555.0,0.55445504]
[1730609417111,0.000819,68556.0,68555.0,0.56564609]
[1730609417459,0.000819,68556.0,68555.0,0.56864609]
[1730609420095,0.000819,68569.0,68568.0,0.017]
[1730609420307,0.000819,68569.0,68568.0,0.67740384]
[1730609420515,0.000819,68569.0,68568.0,0.68166848]
[1730609421630,0.000819,68569.0,68568.0,0.68366848]
[1730609421955,0.000819,68569.0,68568.0,0.68666848]
[1730609422632,0.000819,68569.0,68568.0,0.68366848]
[1730609422989,0.000819,68569.0,68568.0,0.68666848]
[1730609423385,0.000819,68569.0,68568.0,0.68466848]
[1730609423586,1e-06,68569.0,68568.0,0.92785848]
[1730609423958,1e-06,68569.0,68568.0,0.92585848]
[1730609424150,1e-06,68569.0,68568.0,0.97306139]
[1730609425075,1e-06,68569.0,68568.0,0.81946139]
[1730609425272,1e-06,68569.0,68568.0,0.82304903]
[1730609425474,1e-06,68569.0,68568.0,0.97664903]
[1730609425907,1e-06,68569.0,68568.0,0.97864903]
[1730609430341,1e-06,68569.0,68568.0,0.82504903]
[1730609431299,1e-06,68569.0,68568.0,0.82502383]
[1730609433185,0.21902447,68579.0,68578.0,0.017]
[1730609433311,0.21902447,68586.0,68585.0,0.262804]
[1730609433530,0.21902447,68586.0,68585.0,0.52876157]
[1730609434082,0.0777,68591.0,68590.0,0.252793]
[1730609434282,0.0777,68591.0,68590.0,0.37795353]
[1730609434501,0.0777,68591.0,68590.0,0.52375057]
[1730609434688,0.0777,68591.0,68590.0,0.52875057]
[1730609435239,0.0777,68591.0,68590.0,0.53175057]
[1730609435466,0.0489,68597.0,68596.0,0.150781]
[1730609435674,0.0489,68597.0,68596.0,0.29657804]
[1730609435903,0.1266,68597.0,68596.0,0.29657804]
[1730609436083,0.1266,68597.0,68596.0,0.39657804]
[1730609437254,0.1266,68597.0,68596.0,0.39757804]
[1730609437670,0.1266,68597.0,68596.0,0.40127983]
[1730609437875,0.0777,68597.0,68596.0,0.40227983]
[1730609438100,0.0777,68597.0,68596.0,0.40727983]
[1730609438565,0.0489,68603.0,68598.0,0.262776]
[1730609438566,0.0777,68603.0,68598.0,0.262776]
[1730609438757,0.00082,68608.0,68598.0,0.41148808]
[1730609438758,0.0777,68607.0,68598.0,0.41148808]
[1730609438993,0.00082,68608.0,68598.0,0.41572439]
[1730609440287,0.00082,68608.0,68598.0,0.42072439]
[1730609440698,0.00082,68608.0,68598.0,0.41772439]
[1730609441129,0.00082,68608.0,68598.0,0.42072439]
[1730609441938,1e-06,68599.0,68598.0,0.54088492]
[1730609442178,0.29862447,68617.0,68616.0,0.262738]
[1730609442367,0.29862447,68617.0,68616.0,0.52869557]
[1730609442576,0.21902447,68617.0,68616.0,0.52869557]
[1730609442740,0.0796,68621.0,68620.0,0.25073]
[1730609442942,0.0796,68621.0,68620.0,0.40152704]
[1730609443325,0.0796,68621.0,68620.0,0.40652704]
[1730609444143,0.0796,68621.0,68620.0,0.40952704]
[1730609444323,0.0796,68621.0,68620.0,0.41152704]
[1730609445827,0.000826,68625.0,68624.0,0.155721]
[1730609446036,0.000826,68625.0,68624.0,0.52167857]
[1730609446231,0.000826,68625.0,68624.0,0.52667857]
[1730609446969,0.000826,68625.0,68624.0,0.52967857]
[1730609447198,0.000826,68625.0,68624.0,0.53167857]
[1730609447439,0.000826,68625.0,68624.0,0.53367857]
[1730609450055,0.000826,68625.0,68624.0,0.54081642]
[1730609450480,0.0796,68636.0,68625.0,0.117]
[1730609450481,2.91101026,68626.0,68625.0,0.117]
[1730609450697,2.87269727,68626.0,68625.0,0.40851604]
[1730609450904,2.65274954,68626.0,68625.0,0.53581442]
[1730609451113,2.58189775,68626.0,68625.0,0.56500442]
[1730609451315,2.54911974,68626.0,68625.0,0.56500442]
[1730609451515,2.54911974,68626.0,68625.0,0.55986657]
[1730609451940,2.54911974,68626.0,68625.0,0.55786657]
[1730609452141,2.54911974,68626.0,68625.0,0.55986657]
[1730609452348,2.54911974,68626.0,68625.0,0.56186657]
[1730609452905,2.54911974,68626.0,68625.0,0.55986657]
[1730609453415,2.54911974,68626.0,68625.0,0.56900246]
[1730609453638,2.54911974,68626.0,68625.0,0.56700246]
[1730609454011,2.54911974,68626.0,68625.0,0.44884193]
[1730609454423,2.51800255,68626.0,68625.0,0.56186657]
[1730609454623,2.21605575,68626.0,68625.0,0.65145657]
[1730609454777,2.15776975,68626.0,68625.0,0.65145657]
[1730609455158,2.04119775,68626.0,68625.0,0.65145657]
[1730609456359,2.04201675,68626.0,68625.0,0.65145657]
[1730609456790,2.04201675,68626.0,68625.0,0.44170604]
[1730609457022,2.04201675,68626.0,68625.0,0.44884169]
[1730609457675,2.04201675,68626.0,68625.0,0.44884314]
[1730609457877,2.04201675,68626.0,68625.0,0.44684314]
[1730609458721,2.04201675,68626.0,68625.0,0.44884314]
[1730609458869,2.04201675,68626.0,68625.0,0.44684314]
[1730609459290,2.04201675,68626.0,68625.0,0.44884314]
[1730609460223,2.04201675,68626.0,68625.0,0.50713414]
[1730609462014,2.04201675,68626.0,68625.0,0.50213414]
[1730609462217,2.04201675,68626.0,68625.0,0.50713414]
[1730609464390,2.04201675,68626.0,68625.0,0.50714294]
[1730609467739,2.04201675,68626.0,68625.0,0.49999704]
[1730609467997,2.04201675,68626.0,68625.0,0.62731455]
[1730609468214,2.04201675,68626.0,68625.0,0.62931455]
[1730609468875,2.04201675,68626.0,68625.0,0.50715402]
[1730609469239,2.04201675,68626.0,68625.0,0.62731455]
[1730609470135,2.04201675,68626.0,68625.0,0.50715402]
[1730609471057,2.04201675,68626.0,68625.0,0.62731455]
[1730609471382,2.04201675,68626.0,68625.0,0.50715402]
[1730609475367,2.12211675,68626.0,68625.0,0.40715402]
[1730609476211,2.12211675,68626.0,68625.0,0.40215402]
[1730609476387,2.12211675,68626.0,68625.0,0.40715402]
[1730609476588,2.12211675,68626.0,68625.0,0.50715402]
[1730609476798,2.12211675,68626.0,68625.0,0.50515402]
[1730609476995,2.12211675,68626.0,68625.0,0.50315402]
[1730609477200,2.12211675,68626.0,68625.0,0.47096402]
[1730609477449,2.12211675,68626.0,68625.0,0.47296402]
[1730609477838,2.13577065,68626.0,68625.0,0.47296402]
[1730609478170,2.13577065,68626.0,68625.0,0.47096402]
[1730609478346,2.12211675,68626.0,68625.0,0.47096402]
[1730609478546,2.12211675,68626.0,68625.0,0.46596402]
[1730609478962,2.13577233,68626.0,68625.0,0.32188102]
[1730609479163,2.18127233,68626.0,68625.0,0.16359002]
[1730609479368,2.18127233,68626.0,68625.0,0.15643304]
[1730609479613,2.32698933,68626.0,68625.0,0.15643304]
[1730609479813,2.18127233,68626.0,68625.0,0.15443304]
[1730609480028,2.32698933,68626.0,68625.0,0.15443304]
[1730609480254,2.18127233,68626.0,68625.0,0.15643304]
[1730609480452,2.18127233,68626.0,68625.0,0.25643304]
[1730609480657,2.32697797,68626.0,68625.0,0.108636]
[1730609481226,2.32697797,68626.0,68625.0,0.105636]
[1730609481406,2.32697797,68626.0,68625.0,0.003636]
[1730609481608,2.32697797,68626.0,68625.0,0.001636]
[1730609481817,2.32697797,68626.0,68609.0,0.01145194]
[1730609481818,2.20148671,68626.0,68609.0,0.01145194]
[1730609482019,2.20148671,68626.0,68604.0,0.01522147]
[1730609482020,0.145761,68605.0,68604.0,0.01522147]
[1730609482339,0.28780522,68605.0,68604.0,0.01522147]
[1730609482548,0.28780522,68605.0,68601.0,0.001638]
[1730609482549,0.145765,68604.0,68601.0,0.001638]
[1730609482762,0.23931122,68603.0,68601.0,0.001638]
[1730609482935,0.340025,68605.0,68601.0,0.001638]
[1730609482936,0.01364422,68602.0,68601.0,0.001638]
[1730609483145,0.09354422,68602.0,68601.0,0.001638]
[1730609483603,0.23931222,68602.0,68601.0,0.001638]
[1730609483833,0.09354422,68602.0,68601.0,0.40320504]
[1730609484017,0.0799,68602.0,68601.0,0.40520504]
[1730609484216,0.0799,68602.0,68601.0,0.40720504]
[1730609485050,0.0799,68602.0,68601.0,0.40520504]
[1730609485258,0.0799,68602.0,68601.0,0.40720504]
[1730609485667,0.0799,68602.0,68601.0,0.40520504]
[1730609485874,0.0799,68602.0,68601.0,0.40883788]
[1730609486095,0.0799,68602.0,68601.0,0.41083788]
[1730609486530,0.0799,68602.0,68601.0,0.40983788]
[1730609486684,0.0799,68602.0,68601.0,0.40883788]
[1730609487103,0.0799,68602.0,68601.0,0.40983788]
[1730609487914,0.0799,68602.0,68601.0,0.41183788]
[1730609489464,0.0799,68602.0,68601.0,0.40983788]
[1730609489885,0.0799,68602.0,68601.0,0.41083788]
[1730609490088,0.0799,68602.0,68601.0,0.41283788]
[1730609490502,0.0799,68602.0,68601.0,0.41083788]
[1730609490699,0.0799,68602.0,68601.0,0.41283788]
[1730609490935,0.0799,68602.0,68601.0,0.41083788]
[1730609491314,0.0799,68602.0,68601.0,0.41283788]
[1730609491517,0.0799,68602.0,68601.0,0.40783788]
[1730609492277,0.0799,68602.0,68601.0,0.40583788]
[1730609492516,0.0799,68602.0,68601.0,0.40383788]
[1730609492724,0.0799,68602.0,68601.0,0.40583788]
[1730609492941,0.0799,68602.0,68601.0,0.40783788]
[1730609493144,0.0799,68602.0,68601.0,0.40583788]
[1730609493546,0.0799,68602.0,68601.0,0.40783788]
[1730609493749,0.0799,68602.0,68601.0,0.40583788]
[1730609493949,0.0799,68602.0,68601.0,0.40383788]
[1730609494152,0.0799,68602.0,68601.0,0.40583788]
[1730609494906,0.0799,68602.0,68601.0,0.39883788]
[1730609495110,0.0799,68602.0,68601.0,0.40083788]
[1730609495704,0.0799,68602.0,68601.0,0.40283788]
[1730609495922,0.0799,68602.0,68601.0,0.43202788]
[1730609498410,0.0799,68602.0,68601.0,0.43002788]
[1730609498613,0.0799,68602.0,68601.0,0.43202788]
[1730609499225,0.0799,68602.0,68601.0,0.43002788]
[1730609499631,0.0799,68602.0,68601.0,0.43202788]
[1730609500641,0.0799,68602.0,68601.0,0.43002788]
[1730609501742,0.0799,68602.0,68601.0,0.43202788]
[1730609502172,0.0799,68602.0,68601.0,0.43002788]
[1730609507470,0.0799,68602.0,68601.0,0.43202788]
[1730609507910,0.0799,68602.0,68601.0,0.43002788]
[1730609508782,0.0799,68602.0,68601.0,0.43202788]
[1730609510148,0.0799,68602.0,68601.0,0.43002788]
[1730609510338,0.09355255,68602.0,68601.0,0.43002788]
[1730609511263,0.09355255,68602.0,68601.0,0.43721628]
[1730609511693,0.09355255,68602.0,68601.0,0.43921628]
[1730609511892,0.09355255,68602.0,68601.0,0.43721628]
[1730609515026,0.09355255,68602.0,68601.0,0.43002788]
[1730609515227,0.09355255,68602.0,68601.0,0.43722324]
[1730609515641,0.09355255,68602.0,68601.0,0.43922324]
[1730609515833,0.01365255,68602.0,68601.0,0.56938377]
[1730609516042,0.000818,68616.0,68615.0,0.18193]
[1730609516265,0.01447538,68616.0,68615.0,0.4349224]
[1730609516499,0.000818,68616.0,68615.0,0.4349224]
[1730609516922,0.000818,68616.0,68615.0,0.4399224]
[1730609517365,0.000818,68616.0,68615.0,0.4419224]
[1730609517481,0.000818,68616.0,68615.0,0.4399224]
[1730609517705,0.000818,68616.0,68615.0,0.43990996]
[1730609517921,0.000818,68616.0,68615.0,0.44390996]
[1730609519084,0.000818,68616.0,68615.0,0.44763387]
[1730609519469,0.000818,68616.0,68615.0,0.5677944]
[1730609520163,0.000818,68616.0,68615.0,0.61108309]
[1730609520367,0.000818,68616.0,68615.0,0.44763387]
[1730609520780,0.000818,68616.0,68615.0,0.44763291]
[1730609521020,0.000818,68616.0,68615.0,0.44762712]
[1730609521224,0.000818,68616.0,68615.0,0.49091581]
[1730609521659,0.000818,68616.0,68615.0,0.44762712]
[1730609522281,0.000818,68616.0,68615.0,0.49091581]
[1730609522513,0.000818,68616.0,68615.0,0.44762712]
[1730609522732,0.000818,68616.0,68615.0,0.49091581]
[1730609523415,0.000818,68616.0,68615.0,0.61107634]
[1730609524046,0.000818,68616.0,68615.0,0.61107146]
[1730609524253,0.000818,68616.0,68615.0,0.56778277]
[1730609525282,0.000818,68616.0,68615.0,0.56941877]
[1730609526528,0.000818,68616.0,68615.0,0.61275859]
[1730609527142,0.000818,68616.0,68615.0,0.43725824]
[1730609527357,0.000818,68616.0,68615.0,0.44225824]
[1730609527578,0.000818,68616.0,68615.0,0.43508695]
[1730609527779,0.000818,68616.0,68615.0,0.4422501]
[1730609528003,0.000818,68616.0,68615.0,0.43508695]
[1730609528209,0.000818,68616.0,68615.0,0.44225004]
[1730609528993,0.000818,68616.0,68615.0,0.50055604]
[1730609530125,0.000818,68616.0,68615.0,0.49855604]
[1730609530345,0.000818,68616.0,68615.0,0.49155604]
[1730609530548,0.000818,68616.0,68615.0,0.49255604]
[1730609530765,0.000818,68616.0,68615.0,0.48539295]
[1730609530766,0.050118,68616.0,68615.0,0.48539295]
[1730609530964,0.126618,68616.0,68615.0,0.42608695]
[1730609531375,0.126618,68616.0,68615.0,0.42708695]
[1730609531728,0.126618,68616.0,68615.0,0.42908695]
[1730609532332,0.126618,68616.0,68615.0,0.42708695]
[1730609532533,0.126618,68616.0,68615.0,0.42908695]
[1730609534082,0.126618,68616.0,68615.0,0.004636]
[1730609534314,0.272356,68616.0,68615.0,0.004636]
[1730609534512,0.272356,68616.0,68615.0,0.001636]
[1730609534513,0.126618,68616.0,68615.0,0.001636]
[1730609534722,0.1402294,68616.0,68615.0,0.001636]
[1730609534871,0.1402294,68616.0,68615.0,0.003636]
[1730609535277,0.1402294,68616.0,68615.0,0.001636]
[1730609535656,0.1402294,68616.0,68615.0,0.003636]
[1730609536244,0.1402294,68616.0,68615.0,0.004636]
[1730609536458,0.1402294,68616.0,68615.0,0.003636]
[1730609536814,0.1402294,68616.0,68615.0,0.004636]
[1730609537029,0.1402294,68616.0,68615.0,0.150376]
[1730609537339,0.126618,68616.0,68615.0,0.150376]
[1730609537679,0.14023389,68616.0,68615.0,0.004636]
[1730609537911,0.126618,68616.0,68615.0,0.004636]